Cogmind - Beta 16 *** ADVENTURER MODE // 2025.12.14 @ 15:41:46 Player: Jinn Result: Destroyed by KE-D5N(R) with Subdweller Beam Cannon Performance ------------- Evolutions (0) 0 Regions Visited (2) 400 Robots Destroyed (20) 100 Value Destroyed (389) 389 Prototype IDs (1) 20 Alien Tech Used (0) 0 Bonus (0) 0 TOTAL SCORE: 909 Bonus ------- None Cogmind --------- Core Integrity 0/250 Matter 159/300 Energy 84/100 System Corruption 0% Temperature Cool (9) Movement Core (350) Ox6 Location -10/Subcaves Parts ------- > --- POWER (1) -------- (None) > --- PROPULSION (2) --- (None) > --- UTILITY (2) ------ Large Storage Unit > --- WEAPON (2) ------- (None) > --- INVENTORY (15) --- Large Storage Unit Large Storage Unit Small Matter Pod (0) Weapon Shielding Scrap Shield Peak State ------------ > --- POWER ------------ Heavy Ion Engine > --- PROPULSION ------- Aluminum Leg Aluminum Leg > --- UTILITY ---------- Large Storage Unit Weapon Shielding > --- WEAPON ----------- Light Assault Rifle Grenade Launcher > --- INVENTORY -------- Light Ion Engine Light Ion Engine Heavy Ion Engine Small Storage Unit Small Storage Unit Small Matter Pod Signal Interpreter Weapon Shielding [Rating: 10] Favorites ----------- Power Heavy Ion Engine Engine Heavy Ion Engine Propulsion Aluminum Leg Leg Aluminum Leg Utility Weapon Shielding Storage Large Storage Unit Protection Weapon Shielding Weapon Grenade Launcher Energy Cannon Beam Cannon Ballistic Gun Light Assault Rifle Launcher Grenade Launcher Build | -11 -10 -10 ------- Run | Yrd Mat Sub Slots Evolved . | . . . Power . | . . . Propulsion . | . . . Utility . | . . . Weapon . | . . . Parts Attached 13 | 1 11 1 Power 3 | . 3 . Engine 3 | . 3 . Core . | . . . Reactor . | . . . Propulsion 2 | . 2 . Treads . | . . . Leg 2 | . 2 . Wheel . | . . . Hover . | . . . Flight . | . . . Utility 5 | 1 4 . Device . | . . . Storage 3 | 1 2 . Processor . | . . . Hackware . | . . . Protection 2 | . 2 . Artifact . | . . . Weapon 3 | . 2 1 Energy Gun . | . . . Energy Cannon 1 | . . 1 Ballistic Gun 1 | . 1 . Ballistic Cannon . | . . . Launcher 1 | . 1 . Special Weapon . | . . . Impact Weapon . | . . . Slashing Weapon . | . . . Piercing Weapon . | . . . Special Melee Weapon . | . . . Unidentified Prototypes 1 | . 1 . Parts Lost 6 | . . 6 Power 1 | . . 1 Propulsion 2 | . . 2 Utility 1 | . . 1 Weapon 2 | . . 2 Highest Loss Streak 6 | . . 6 To Critical Strikes . | . . . Average Backups 4 | 2 4 4 Power . | 1 . . Propulsion . | . . . Utility 3 | . 3 4 Weapon . | . . . Tool/Special . | . . . Unused Backups 7 | . 4 3 Power 1 | . 1 . Propulsion . | . . . Utility 6 | . 3 3 Weapon . | . . . Tool/Special . | . . . Average Slot Usage (%) 85 | . 86 80 Engine 13 | . 13 12 Leg 26 | . 26 25 Storage 14 | . 14 14 Protection 13 | . 13 14 Ballistic Gun 3 | . 4 . Launcher 13 | . 13 12 Peak Build Rating 10 | 1 10 8 Average Rating 7 | . 7 7 On Entrance 3 | . 1 8 Avg Prop Armor Cover (%) . | . . . Naked Turns . | . . . Heaviest Build 33 | 5 33 32 Greatest Support 20 | 3 20 20 Greatest Overweight (x) 2 | 1 1 2 Average Overweight (x) . | . . 1 Largest Inventory Capacity 15 | 8 15 15 Average Capacity 13 | 6 14 15 Most Carried 8 | 5 8 7 Average Carried 4 | 2 4 5 Final Capacity 15 | 8 15 15 Final Carried 6 | 5 4 6 Class Distribution -------------------- 100% | Mutant Dominant Class ---------------- Mutant | -10/Materials Mutant | -10/Subcaves Resources | -11 -10 -10 ----------- Run | Yrd Mat Sub Matter Collected 400 | 210 156 34 Remotely . | . . . Salvage Created 356 | . 281 75 Parts 31 | . 27 4 Haulers Intercepted . | . . . Recyclers Shooed . | . . . Parts Field Recycled . | . . . Retrieved Matter . | . . . Parts Self-Destructed 3 | . . 3 Prevented . | . . . Parts Restored . | . . . Kills | -11 -10 -10 ------- Run | Yrd Mat Sub Combat Hostiles Destroyed 12 | . 10 2 AOE 12 | . 10 2 Classes Destroyed 6 | . 5 1 Worker 5 | . 5 . Recycler 1 | . 1 . Watcher 2 | . 2 . Swarmer 5 | . 5 . Grunt 5 | . 5 . Subdweller 2 | . . 2 Best Kill Streak 7 | . 7 2 Combat Bots Only 3 | . 3 2 Max Kills in Single Turn 2 | . 2 2 Gunslinging . | . . . Exploded 2 | . 2 2 Melee . | . . . Uniques/NPCs Destroyed . | . . . Combat | -11 -10 -10 -------- Run | Yrd Mat Sub Hostile Shots Fired 59 | . 30 29 Missed 12 | . 9 3 Hits 47 | . 21 26 Projectile 47 | . 21 26 Damage Taken 936 | . 279 657 Core 262 | . 28 234 Absorbed by Shields . | . . . Redirected to Shielding 56 | . 10 46 Ignored by Resistances 251 | . 83 168 Core Remaining (%) 100 | 100 . . Volleys Fired 30 | . 25 5 Largest 2 | . 2 1 Hottest 60 | . 50 60 Shots Fired 37 | . 32 5 Gun 11 | . 11 . Cannon 3 | . . 3 Launcher 23 | . 21 2 Special . | . . . Kinetic 11 | . 11 . Thermal 3 | . . 3 Explosive 23 | . 21 2 Electromagnetic . | . . . Robot Hit Streak 11 | . 11 7 Robot Miss Streak 2 | . 2 1 Penetration Max . | . . . Secondary Targets . | . . . Shots Hit Robots 24 | . 21 3 Core Hits 31 | . 25 6 Critical Kills . | . . . Critical Parts Destroyed . | . . . Critical Strikes . | . . . Melee Attacks . | . . . Impact . | . . . Slashing . | . . . Piercing . | . . . Sneak Attacks . | . . . Combat Hostiles . | . . . Follow-up Attacks . | . . . Damage Inflicted 1613 | . 1169 444 Guns 73 | . 73 . Cannons 36 | . . 36 Explosions 1504 | . 1096 408 Melee . | . . . Ramming . | . . . Kinetic 73 | . 73 . Thermal 36 | . . 36 Explosive 1504 | . 1096 408 Electromagnetic . | . . . Impact . | . . . Slashing . | . . . Piercing . | . . . Highest Corruption . | . . . Average Corruption . | . . . Corruption Purged . | . . . Corruption Blocked . | . . . Overload Shots . | . . . Overflow Damage 10 | . 10 . Projectiles . | . . . Explosions 10 | . 10 . Melee . | . . . Knockbacks . | . . . Impact . | . . . Kinetic . | . . . Secondary . | . . . Self-Inflicted Damage 144 | . 125 19 Shots 6 | . 5 1 Rammed . | . . . Targets Rammed . | . . . Kicked . | . . . Crushed . | . . . Highest Temperature 19 | . 19 9 Average Temperature 8 | . 8 9 Received Heat Transfer 264 | . 60 204 Siege Activations . | . . . Martial Activations . | . . . Shielding Activations . | . . . Robots Disrupted . | . . . Combat Hostiles . | . . . Robots Corrupted . | . . . Combat Hostiles . | . . . Parts Fried . | . . . Impact Corruptions . | . . . Robots Melted . | . . . Combat Hostiles . | . . . Parts Melted . | . . . Heat Transferred 74 | . . 74 Parts Sabotaged . | . . . Parts Stolen . | . . . Parts Stripped . | . . . Power Chain Reactions . | . . . Alert | -11 -10 -10 ------- Run | Yrd Mat Sub Maximum Alert Level 1 | . 1 . Low Security (%) 81 | 100 79 . Level 1 18 | . 20 . Level 2 . | . . . Level 3 . | . . . Level 4 . | . . . Level 5 . | . . . High Security . | . . . Max Security . | . . . Peak Influence 261 | . 261 . Initial . | . . . Average 99 | . 106 . Influence Increases 422 | . 422 . Destroy 0b10 Robot/C 200 | . 200 . Destroy 0b10 Robot/NC 40 | . 40 . Destroy Leader 34 | . 34 . Successful Hack 5 | . 5 . Disable Machine 18 | . 18 . Destroy Structure 125 | . 125 . Influence Decreases 422 | . 301 121 Entered New Map 67 | . . 67 Time Decay 351 | . 301 50 Lost Part 4 | . . 4 Squads Dispatched . | . . . Investigation . | . . . Extermination . | . . . Reinforcement . | . . . Assault . | . . . Garrison . | . . . Intercept . | . . . Searches Triggered . | . . . Construction Impeded . | . . . Haulers Reinforced . | . . . Active Scanning Responses . | . . . Cargo Convoy Interrupts . | . . . Stealth | -11 -10 -10 --------- Run | Yrd Mat Sub Distress Signals . | . . . Communications Jammed . | . . . Distress Signals . | . . . Times Spotted 23 | . 14 9 Peak Tracking Total 9 | . 4 9 Tactical Retreats . | . . . Traps | -11 -10 -10 ------- Run | Yrd Mat Sub Traps Triggered 2 | . . 2 Indirectly . | . . . Trap Hack Attempts . | . . . Triggered . | . . . Disarmed . | . . . Reprogrammed . | . . . Reused . | . . . Traps Extracted . | . . . Installed . | . . . Triggered . | . . . Machines | -11 -10 -10 ---------- Run | Yrd Mat Sub Machines Disabled 2 | . 2 . Max in Single Turn 2 | . 2 . Machines Repaired . | . . . Machines Dismantled . | . . . Machines Sabotaged . | . . . Overloaded Fab Kills . | . . . Hacking | -11 -10 -10 --------- Run | Yrd Mat Sub Machines Accessed 3 | . 3 . Terminals 2 | . 2 . Fabricators . | . . . Repair Stations . | . . . Recycling Units 1 | . 1 . Scanalyzers . | . . . Garrison Access . | . . . Total Hacks 8 | . 8 . Successful 5 | . 5 . Failed 3 | . 3 . Catastrophic . | . . . Database Lockouts . | . . . Manual . | . . . Terminals 6 | . 6 . Fabricators . | . . . Repair Stations . | . . . Recycling Units 2 | . 2 . Scanalyzers . | . . . Garrison Access . | . . . Terminal Hacks 4 | . 4 . Record 1 | . 1 . Investigation Status 1 | . 1 . Hauler Manifests 1 | . 1 . Zone Layout 1 | . 1 . Fabricator Hacks . | . . . Repair Station Hacks . | . . . Recycling Unit Hacks 1 | . 1 . Report Inventory 1 | . 1 . Scanalyzer . | . . . Garrison Access Hacks . | . . . Unauthorized Hacks . | . . . Terminals . | . . . Fabricators . | . . . Repair Stations . | . . . Recycling Units . | . . . Scanalyzers . | . . . Garrison Access . | . . . Data Cores Recovered . | . . . Used . | . . . Hacking Detections 2 | . 2 . Full Trace Events . | . . . Feedback Events . | . . . Feedback Blocked . | . . . Robot Schematics Acquired . | . . . Robots Built . | . . . Authchips . | . . . Time . | . . . Total Robot Build Rating . | . . . Part Schematics Acquired . | . . . Parts Built . | . . . Authchips . | . . . Time . | . . . Total Part Build Rating . | . . . Part Studies Acquired . | . . . Parts Repaired . | . . . Time . | . . . Parts Recycled . | . . . Recycled Matter . | . . . Retrieved Matter . | . . . Retrieved Components . | . . . Parts Scanalyzed . | . . . Part Schematics Acquired . | . . . Parts Damaged . | . . . Bothacking | -11 -10 -10 ------------ Run | Yrd Mat Sub Used RIF Installer . | . . . Robots Hacked . | . . . Non-combat . | . . . Combat . | . . . Robot Hacks Applied . | . . . Relay Couplers Released . | . . . Fabnet Peak Effective % . | . . . Robots Rewired . | . . . Allies Hacked . | . . . Hacks Repelled . | . . . Allies | -11 -10 -10 -------- Run | Yrd Mat Sub Total Allies . | . . . Largest Group . | . . . Highest-Rated Group . | . . . Highest-Rated Ally . | . . . Total Orders . | . . . Ally Attacks . | . . . Total Damage . | . . . Kills . | . . . Allies Corrupted . | . . . Allies Melted . | . . . Intel | -11 -10 -10 ------- Run | Yrd Mat Sub Active Infowar (turns) . | . . . Robot Analysis Total . | . . . Derelict Logs Recovered . | . . . Drone Launches . | . . . Drone Recoveries . | . . . Exploration | -11 -10 -10 ------------- Run | Yrd Mat Sub Turns Passed 847 | 49 681 117 Spaces Moved 458 | 63 342 53 Core 82 | 63 19 . Treads . | . . . Legs 376 | . 323 53 Wheels . | . . . Hover . | . . . Flight . | . . . Fastest Speed 50 | 50 100 190 Average Speed 162 | 68 174 191 Slowest Speed 260 | 100 190 260 Overloaded Moves . | . . . Propulsion Burnouts . | . . . Robots Hopped . | . . . Potential Cave-ins . | . . . Cave-ins Triggered . | . . . Exploration Rate (%) 23 | 3 63 5 Regions Visited 2 Branch Regions 1 Pre-discovered Areas . | . . . Known Exits Taken . | . . . Unknown Exits Taken 2 | 1 1 . Scrap Searched . | . . . Spaces Dug . | . . . Terrain Destroyed 136 | . 125 11 Melee . | . . . Projectile . | . . . AOE 136 | . 125 11 Terrain Rammed . | . . . Walls Destroyed . | . . . Machines Disabled . | . . . Actions | -11 -10 -10 --------- Run | Yrd Mat Sub Total 527 | 68 397 62 Wait 1 | . . 1 Move 456 | 62 341 53 Hop . | . . . Pick Up 19 | 5 12 2 Fast Attach 1 | 1 . . Attach 7 | . 6 1 Detach . | . . . Swap 5 | . 5 . Drop 8 | . 8 . Fire 30 | . 25 5 Melee . | . . . Ram . | . . . Kick . | . . . Crush . | . . . Escape Stasis . | . . . Rewire . | . . . Trap . | . . . Miscellaneous . | . . . Route ------- -11/Scrapyard -10/Materials (discovered 3 exits: [*Mat x2] / [*Sub]) -10/Subcaves History --------- Turn | Location | Event 3 | -11/Scrapyard | Discovered new exit (range 15) 50 | -11/Scrapyard | Entered Materials 322 | -10/Materials | Build established: Mutant 362 | -10/Materials | Discovered new exit (range 16) 364 | -10/Materials | Discovered new exit (range 12) 466 | -10/Materials | Discovered new exit (range 14) 731 | -10/Materials | Entered Subcaves 824 | -10/Subcaves | Ambushed by swarm of Subdwellers 824 | -10/Subcaves | Ambushed by Subdwellers from Twisted Machinery 824 | -10/Subcaves | Ambushed by Subdwellers from Twisted Machinery 833 | -10/Subcaves | Core integrity fell below 50% 841 | -10/Subcaves | Core integrity fell below 20% 848 | -10/Subcaves | Destroyed by KE-D5N(R) with Subdweller Beam Cannon Last Messages --------------- 00832_ Acquired 34 matter. 00833_ W4-TNQ(g): "Sorry we're late! Had another grouchy Sub to deal with. Who's the new fellow?" 00833_ Subatomizers dissect the Disposable Heat Sink. 00834_ Hvy. Ion Engine destroyed. 00836_ Aluminum Leg destroyed. 00839_ Acquired Beam Cannon. 00839_ EF-9KM(R) affixes Scrap Shield Fragment to Scrap Shield. [Achievement: There's More Where That Came From] 00841_ 5V-JAN(R) affixes Scrap Shield Fragment to Scrap Shield. 00843_ Subatomizers dissect the Disposable Heat Sink. 00843_ KE-D5N(R) affixes Scrap Shield Fragment to Scrap Shield. 00846_ Weapon Shielding destroyed. 00846_ Beam Cannon destroyed. Map ----- +----------------------------------------------------+ | ?????????????????????????????????????????????????? | | ?????????????????????????????????????????????????? | | ?????????????????????????????????????????????????? | | ?????????????????????????????????????????????????? | | ?????????????????????????????????????????????????? | | ?????????????????????????????????????????????????? | | ?????????????????????????????????????????????????? | | ?????????????????????????????????????????????????? | | ?????????????????????????????????????????????????? | | ?????????????????????????????????????????????????? | | ?????????????????????????????????????????????????? | | ?????????????????????# ??????????????????????????? | | ??????????????????? ?????????????????????????? | | ??????????????????? ?????????????????????????? | | ???????????????????? ?????????%???????????????? | | ???????????????????? #??????? #??? ???????????? | | ????????????????????# ?????? ##? ???????????? | | ????????????????????# ####?? # ???????????? | | ????????????????????# # ?# % ??????????? | | ????????????????????# ## ???????????? | | ????????????????????# #????????????? | | ????????????????????# % #????????????? | | ?????????????????????# ??????????????? | | ?????????????????????# !R ?????????????????? | | ?????????????????????# !%R%R#???????????????????? | | ??????????????????????#" @%R #???????????????????? | | ??????????????????????##"R= ##??????????????????? | | ??????????????????????# #??????????????????? | | ??????????????????????#### %##??????????????????? | | ????????????????????????## R=#???????????????????? | | ???????????????????????## ##??????????????????? | | ??????????????????????## #??????????????????? | | ?????????????????????## #??????????????????? | | ????????????????????## #??????????????????? | | ????????????????????# #??????????????????? | | ????????????????????##" ##??????????????????? | | ?????????????????????"" ##???????????????????? | | ????????????????????#" ";;????????????????????? | | ????????????????????#" %"" ????????????????????? | | ????????????????????#" =" ? ????????????????????? | | ????????????????????#" ""??????????????????????? | | ????????????????????#" #??????????????????????? | | ?????????????????????## ##??????????????????????? | | ?????????????????????# #??????????????????????? | | ?????????????????????## #####???????????????????? | | ????????????????????# "" ##??????????????????? | | ? ???????????????????# "#??????????????????? | | ?? ??????????????????## "#??????????????????? | | ??? ?????????????????### " "#??????????????????? | | ???# ????????????????# " " "#??????????????????? | +----------------------------------------------------+ Best States ------------- Heat Dissipation 25 Energy Generation 14 Energy Capacity 280 Matter Stores 300 Matter Capacity 300 Sight Range 16 Terrain Scan Density 10 Resistance: KI 20 Resistance: TH 20 Resistance: EX 20 Resistance: EM 20 Resistance: I 20 Resistance: S 20 Resistance: P 20 Weapon Shielding 33 Evasion (%) 55 Offensive Hacking 10 Item Schematics ----------------- None Robot Schematics ------------------ None Fabricated ------------ Nothing Repaired ---------- Nothing Studied --------- None Alien Tech Used ----------------- None Achievements -------------- DATA ERROR: Steam Global Achievement% Organ Harvest There's More Where That Came From Challenges ------------ None Game ------ Seed TeslaReflexReplicator Manual? 0 Play Time 00:17:07 Cumulative 61.0 hours Start 2025.12.14 @ 15:25:27 End 2025.12.14 @ 15:41:46 Sessions 1 Manual Loads 0 Difficulty Adventurer Special Mode None Game No. 60 Rogue 49 Adventurer 11 Explorer 0 Win Type - Total 0 Types 0/0/0/0/0/0/0/0/0/0 Lore% 8 Gallery% 22 Achievement% 8 Wizard Run 0 Options --------- Layout 1 ASCII 0 Keyboard 0 Movement Mouse Keybinds 0 Fullscreen 1 Font 32/SmallcapsGlow Map View 50x35 Zoom Use 0% Tactical HUD 1 Map Filters NONE Filters NONE Steam X RUN: 1e5320bb-263d-4191-a4c9-fb58dfbd228f